fUST/lending_fUST_20240425
["ID","MTS","AMOUNT","RATE_DAILY","PERIOD"]
[323493349,1714051610197,-832.472637,0.00016,2]
[323493350,1714051610220,-1333.837385,0.00016,2]
[323493351,1714051610242,-1333.837382,0.00016,2]
[323493352,1714051610264,-209.516384,0.00016,2]
[323493353,1714051610288,-209.516384,0.00016,2]
[323493354,1714051610310,-248.885351,0.00016,2]
[323493355,1714051610334,-248.885351,0.00016,2]
[323493356,1714051610357,-490.318941,0.00016,2]
[323493357,1714051610380,-490.318941,0.00016,2]
[323493358,1714051610403,-154.95618689,0.00016097,2]
[323493359,1714051610426,-211.52191871,0.00016097,2]
[323493360,1714051610448,-384.47022137,0.00016097,2]
[323493361,1714051610470,-289.04459513,0.00016097,2]
[323493362,1714051610495,-482.02380303,0.00016097,2]
[323493363,1714051610519,-157.08875643,0.00016097,2]
[323493364,1714051610543,-248.885351,0.00016097,2]
[323493365,1714051610567,-248.885359,0.00016097,2]
[323493366,1714051610591,-490.318941,0.00016097,2]
[323493367,1714051610614,-490.318934,0.00016097,2]
[323493368,1714051610636,-210.29987918,0.00016098,2]
[323493369,1714051610659,-156.615225,0.00016099,2]
[323493370,1714051610682,-617.40883078,0.000161,2]
[323493371,1714051610705,-823.0,0.00017137,2]
[323493372,1714051610727,-417.0,0.00018252,2]
[323493373,1714051610748,-150.0,0.00018252,2]
[323493374,1714051610771,-152.74,0.00018495,2]
[323493375,1714051610793,-150.0,0.0001855,2]
[323493376,1714051610816,-1152.0,0.00018851,2]
[323493377,1714051610839,-423.24946758,0.00018899,2]
[323493378,1714051610861,-189.24695719,0.0001897,2]
[323493379,1714051610885,-500.0,0.00019178,2]
[323493380,1714051610907,-500.0,0.00019178,2]
[323493381,1714051610932,-500.0,0.00019178,2]
[323493382,1714051610955,-223.66629675,0.00019178,2]
[323493383,1714051610979,-310.89873967,0.00019178,2]
[323493384,1714051611002,-500.0,0.00019178,2]
[323493385,1714051611051,-160.456153,0.00019178,2]
[323493386,1714051611085,-153.0,0.00019526,2]
[323493387,1714051611109,-628.221272,0.00019775,2]
[323493388,1714051611133,-1084.84570238,0.0001985,2]
[323493389,1714051611158,-189.5,0.00019894,2]
[323493390,1714051611182,-162.02240911,0.00019894,2]
[323493391,1714051611206,-154.95644125,0.00019894,2]
[323493392,1714051611230,-475.45972018,0.00019997,2]
[323493393,1714051611254,-155.14434604,0.00019997,2]
[323493394,1714051611279,-460.66889145,0.00019997,2]
[323493395,1714051611302,-157.93707583,0.00019997,2]
[323493396,1714051611326,-234.97838755,0.00019997,2]
[323493397,1714051611353,-1311.22668928,0.00019997,2]
[323493398,1714051611378,-1133.1347,0.00019997,2]
[323493399,1714051611402,-7902.0,0.0002,2]
[323493400,1714051611427,-463.63355738,0.0002,2]
[323493401,1714051611452,-400.0,0.0002,2]
[323493402,1714051611478,-154.93802479,0.0002,2]
[323493403,1714051611506,-67368.42695755,0.0002,2]
[323493404,1714051611531,-154.93802479,0.0002,2]
[323493405,1714051611555,-154.93802479,0.0002,2]
[323493406,1714051611582,-2292.12438901,0.0002,5]
[323493407,1714051611606,-524.5590728,0.0002,4]
[323493408,1714051611630,-1850.0,0.0002,2]
[323493409,1714051611655,-491.0,0.0002,2]
[323493410,1714051611680,-277.98874446,0.0002,2]
[323493411,1714051611705,-180000.0,0.0002,2]
[323493412,1714051611730,-319.79932742,0.0002,2]
[323493413,1714051611755,-1058.55,0.0002,2]
[323493414,1714051611779,-200.0,0.0002,2]
[323493415,1714051611802,-253.00916,0.00020366,2]
[323493416,1714051611826,-520.08349456,0.00020547,3]
[323493417,1714051611851,-3000.0,0.00020547,2]
[323493418,1714051611874,-1936.96448864,0.00020547,2]
[323493419,1714051611899,-1445.0,0.00020736,2]
[323493420,1714051611923,-366118.76986345,0.00021,2]
[323493421,1714051611946,-938.89777268,0.000219,2]
[323493422,1714051611973,-5225.7385137,0.00021918,2]
[323493423,1714051611996,-305.36215558,0.00022,2]
[323493424,1714051612020,-638.06438949,0.00022,2]
[323493425,1714051612044,-154.93405571,0.000225,2]
[323493426,1714051612067,-155.01648526,0.000225,2]
[323493427,1714051612093,-150.190599,0.000225,2]
[323493428,1714051612118,-713.64240918,0.00023,2]
[323493429,1714051612143,-5600.0,0.000239,9]
[323493430,1714051612170,-151.4091651,0.00023952,2]
[323493431,1714051612198,-538.64449696,0.00024,2]
[323493432,1714051612223,-154.90705577,0.00024,2]
[323493433,1714051612250,-16094.98479833,0.00024,2]
[323493434,1714051612278,-284.87621508,0.00024,2]
[323493435,1714051612306,-19189.60584741,0.00024,2]
[323493436,1714051612335,-200.0,0.00024,2]
[323493437,1714051612360,-3600.0313689,0.00024,2]
[323493438,1714051612384,-154.92253873,0.00024,2]
[323493439,1714051612558,-4242.57612753,0.00024,10]
[323493440,1714051612588,-10586.41755726,0.00024,2]
[323493441,1714051612614,-3675.57023065,0.00024,10]
[323493442,1714051612639,-711.01101438,0.000245,2]
[323493443,1714051612663,-500.0,0.00024658,2]
[323493444,1714051612686,-380.0,0.00024658,2]
[323493445,1714051612711,-154.93802479,0.00025,2]
[323493446,1714051612736,-1015.65417828,0.00025,2]
[323493447,1714051612761,-517.18466161,0.00025,2]
[323493448,1714051612787,-154.8897524,0.00025,2]
[323493449,1714051612812,-383102.67200303,0.000251,89]
[323493450,1714051612839,-24005.53671868,0.000251,2]
[323493451,1714051612863,-1741.88902029,0.000251,2]
[323493452,1714051612886,-2657.41,0.00025205,2]
[323493453,1714051612910,-19858.2913,0.00025571,30]
[323493454,1714051612935,-1329.8165723,0.00026,2]
[323493455,1714051612960,-154.92253873,0.00026,2]
[323493456,1714051612986,-2657.41,0.00026301,5]
[323493457,1714051613011,-2175.36005338,0.000266,2]
[323493458,1714051613037,-938.89777268,0.000269,2]
[323493459,1714051613062,-332.46637311,0.00027,20]
[323493460,1714051613089,-8520.80129745,0.00027,2]
[323493461,1714051613113,-3502.39859375,0.00027,15]
[323493462,1714051613135,-2657.41,0.00027397,8]
[323493463,1714051613157,-500.0,0.00027397,2]
[323493464,1714051613182,-500.0,0.00027397,2]
[323493465,1714051613206,-500.0,0.00027397,2]
[323493466,1714051613230,-500.0,0.00027397,2]
[323493467,1714051613256,-500.0,0.00027397,2]
[323493468,1714051613283,-500.0,0.00027397,2]
[323493469,1714051613306,-500.0,0.00027397,2]
[323493470,1714051613330,-500.0,0.00027397,2]
[323493471,1714051613356,-500.0,0.00027397,2]
[323493472,1714051613380,-500.0,0.00027397,2]
[323493473,1714051613403,-500.0,0.00027397,2]
[323493474,1714051613427,-500.0,0.00027397,2]
[323493475,1714051613450,-500.0,0.00027397,2]
[323493476,1714051613473,-500.0,0.00027397,2]
[323493477,1714051613498,-500.0,0.00027397,2]
[323493478,1714051613522,-552.82051314,0.00027397,2]
[323493479,1714051613545,-383.887881,0.00027397,2]
[323493480,1714051613567,-366.112119,0.00027397,2]
[323493481,1714051613589,-1000.0,0.00027397,2]
[323493482,1714051613612,-166.666666,0.00027397,2]
[323493483,1714051613736,500.0,0.00024657,2]
[323493484,1714051615398,734.42084617,0.00019999,2]
[323493486,1714051615955,207.11675362,0.00024656,2]
[323493560,1714051832391,-150.0,0.0001847,2]
[323493561,1714051832401,-1065.63,0.0002,2]
[323493563,1714051832411,-300.0,0.00020546,2]
[323493565,1714051832420,-300.0,0.00020546,2]
[323493567,1714051832429,-3000.0,0.00020547,2]
[323493569,1714051832439,-1936.96448864,0.00020547,2]
[323493571,1714051832448,-2292.12438901,0.00020958,5]
[323493573,1714051832458,-274.34255753,0.00020986,2]
[323493574,1714051832467,-400.0,0.00021795,2]
[323493575,1714051832476,-154.92253873,0.00021795,2]
[323493576,1714051832485,-39.15988539,0.00021796,2]
[323493945,1714051838382,-150.0870718,0.00021796,2]
[323493946,1714051838391,-154.92253873,0.00021796,2]
[323493947,1714051838400,-463.63355738,0.00021797,2]
[323493948,1714051838409,-222.67777209,0.00021799,2]
[323493949,1714051838421,-254.37816479,0.00021799,2]
[323493950,1714051838437,-1896.96756834,0.00021799,2]
[323494280,1714051842350,-279.43046941,0.00019078,2]
[323494282,1714051842359,-417.0,0.00019488,2]
[323494284,1714051842369,-1831.14867486,0.00021796,2]
[323494411,1714051843471,-154.92253873,0.00021795,2]
[323494414,1714051843481,-154.92253873,0.00021795,2]
[323494416,1714051843491,-268.83455838,0.00021796,2]
[323494417,1714051843503,-683.60036416,0.00021799,2]
[323494421,1714051843528,-346.90718802,0.00021799,2]
[323494423,1714051843537,-62.4671932,0.00021918,2]
[323494425,1714051843548,-749.11313829,0.00021918,2]
[323494735,1714051846534,-157.08875643,0.00021795,2]
[323494737,1714051846543,-277.1155236,0.00021795,2]
[323494743,1714051846591,-6299.8,0.00021795,2]
[323495636,1714053032814,-319.59325,0.00014693,2]
[323495852,1714053038582,-140.23683477,0.00014693,2]
[323495854,1714053038592,-154.90705577,0.00014693,2]
[323495856,1714053038601,-154.90705577,0.00014694,2]
[323495858,1714053038611,-181.44905369,0.00014695,2]
[323496682,1714053046585,-216.42239852,0.00014695,2]
[323496684,1714053046594,-45.38760148,0.00015,2]
[323496690,1714053046641,-1263.2978,0.00015,2]
[323498577,1714054232632,-300.0,0.00014999,2]
[323498578,1714054232642,-16.23475701,0.00014999,2]
[323499414,1714054246854,-283.76524299,0.00014999,2]
[323499416,1714054246866,-154.90705577,0.00015,2]
[323499418,1714054246875,-14561.32770124,0.00015,2]
[323501323,1714054928830,5000.0,0.000111,2]
[323501324,1714054992101,10000.0,0.000111,2]
[323501365,1714055431886,-300.0,0.00011099,2]
[323501366,1714055431898,-6094.98479833,0.000111,2]
[323501367,1714055431909,-538.64449696,0.000111,2]
[323501368,1714055431920,-19189.60584741,0.000111,2]
[323501369,1714055431934,-284.87621508,0.000111,2]
[323501370,1714055431945,-178.0,0.000111,2]
[323501371,1714055431956,-300.0,0.00014728,2]
[323501372,1714055431968,-221.54605298,0.00015,2]
[323501373,1714055431978,-386.01178664,0.00015,2]
[323501374,1714055431988,-155.43415499,0.00015,2]
[323501375,1714055431999,-938.81449525,0.00015,2]
[323501376,1714055432009,-628.3290348,0.00015,2]
[323501377,1714055432020,-1172.75430669,0.00015,2]
[323501404,1714055438144,-665.2135208,0.00015,2]
[323501917,1714056067117,9140.0510938,0.000266,120]
[323501918,1714056081419,13788.85922033,0.0001,4]
[323501919,1714056138858,19189.60584741,0.0001,2]
[323501920,1714056139255,16094.98479833,0.0001,2]
[323501921,1714056149789,284.87621508,0.0001,2]
[323501922,1714056152367,280.63378291,0.0001,2]
[323501923,1714056155232,2009.59251914,0.0001,2]
[323501924,1714056157197,729.56943069,0.0001,2]
[323501925,1714056158002,154.86062544,0.0001,2]
[323501926,1714056160843,6255.876781,0.0001,2]
[323501927,1714056160869,12933.72906641,0.0001,2]
[323501928,1714056163779,317.7019082,0.0001,2]
[323501929,1714056168089,15402.97448314,0.0001,2]
[323501930,1714056168360,280.63378291,0.0001,2]
[323501931,1714056174999,560.86564524,0.0001,2]
[323501932,1714056175995,235.47655016,0.0001,2]
[323501933,1714056184356,280.63378291,0.0001,2]
[323501934,1714056184846,19189.60584741,0.0001,2]
[323501935,1714056200836,19189.60584741,0.0001,2]
[323501936,1714056204362,280.63378291,0.0001,2]
[323501937,1714056220363,280.63378291,0.0001,2]
[323501938,1714056224835,19189.60584741,0.0001,2]
[323501939,1714056231852,9140.0510938,0.000266,120]
[323501940,1714056244855,19189.60584741,0.0001,2]
[323501941,1714056292982,2216.3276475,9.898e-05,2]
[323501942,1714056311446,19189.60584741,9.898e-05,2]
[323501943,1714056314903,280.63378291,9.898e-05,2]
[323501944,1714056327359,17985.16332231,9.898e-05,2]
[323501945,1714056332897,280.63378291,9.898e-05,2]
[323501946,1714056352912,280.63378291,9.898e-05,2]
[323501947,1714056360930,9140.0510938,0.000266,120]
[323501948,1714056370924,280.63378291,9.898e-05,2]
[323501950,1714056386922,280.63378291,9.898e-05,2]
[323501951,1714056408922,340.52615973,9.898e-05,2]
[323501952,1714056447455,198.0654031,9.752e-05,2]
[323501953,1714056498437,9140.0510938,0.000266,120]
[323501981,1714056627468,9140.0510938,0.000266,120]
[323502001,1714056632035,-709.89305319,0.00010697,2]
[323502002,1714056632045,-468.57464287,0.00010697,2]
[323502003,1714056632054,-235.64384072,0.00010697,2]
[323502004,1714056632063,-154.86062544,0.00010698,2]
[323502005,1714056632072,-526.48799582,0.00010698,2]
[323502006,1714056632083,-768.26768042,0.00010699,2]
[323502007,1714056632092,-154.86062544,0.000107,2]
[323502008,1714056632101,-472.12357594,0.000107,2]
[323502009,1714056632110,-1312.11264804,0.000107,2]
[323502010,1714056632119,-162.06158319,0.00010701,2]
[323502011,1714056632128,-521.67886641,0.00010701,2]
[323502012,1714056632137,-1679.50388406,0.00010701,2]
[323502013,1714056632146,-300.0,0.00010701,2]
[323502014,1714056632156,-154.86062544,0.00010702,2]
[323502015,1714056632165,-308.5768874,0.00010702,2]
[323502016,1714056632174,-1202.53293628,0.00010702,2]
[323502017,1714056632183,-300.0,0.00010702,2]
[323502018,1714056632192,-212.12287173,0.00010703,2]
[323502019,1714056632202,-5803.44361904,0.00010703,2]
[323502020,1714056632211,-474.91817209,0.00010703,2]
[323502021,1714056632220,-154.86062544,0.00010703,2]
[323502023,1714056632372,-1878.59086756,0.00010703,2]
[323502024,1714056632383,-187.41445026,0.00010741,2]
[323502025,1714056632392,-302.58946807,0.00010838,2]
[323502026,1714056632402,-1087.28742838,0.00010839,2]
[323502027,1714056632413,-259.4890615,0.00010839,2]
[323502028,1714056632423,-154.96264717,0.00010839,2]
[323502029,1714056632432,-304.2797524,0.00010839,2]
[323502030,1714056632442,-155.10461655,0.00010839,2]
[323502031,1714056632451,-155.00091065,0.00010839,2]
[323502032,1714056632461,-283.61550784,0.00010839,2]
[323502033,1714056632471,-276.774703,0.00010839,2]
[323502034,1714056632481,-452.02174071,0.00010839,2]
[323502035,1714056632491,-227.42172021,0.00010839,2]
[323502036,1714056632501,-154.88167872,0.00010839,2]
[323502037,1714056632511,-296.02935564,0.00010839,2]
[323502038,1714056632520,-309.67484219,0.0001084,2]
[323502039,1714056632530,-156.08493432,0.0001084,2]
[323502040,1714056632539,-155.01361229,0.0001084,2]
[323502041,1714056632549,-154.97936973,0.0001084,2]
[323502042,1714056632558,-203.55772685,0.00010863,2]
[323502043,1714056632568,-151.0,0.00010959,2]
[323502044,1714056632577,-151.0,0.00010959,2]
[323502045,1714056632586,-151.0,0.00010959,2]
[323502046,1714056632595,-151.0,0.00010959,2]
[323502047,1714056632604,-151.0,0.00010959,2]
[323502048,1714056632613,-151.0,0.00010959,2]
[323502049,1714056632622,-151.0,0.00010959,2]
[323502050,1714056632631,-151.0,0.00010959,2]
[323502051,1714056632640,-209.748254,0.00010959,2]
[323502052,1714056632650,-384.49803605,0.00011091,2]
[323502053,1714056632661,-2711.23048874,0.00011099,2]
[323502054,1714056632670,-151.0,0.00011099,2]
[323502055,1714056632680,-420.0,0.00011763,2]
[323502056,1714056632690,-420.0,0.00011772,2]
[323502057,1714056632700,-187.41445023,0.00012825,2]
[323502058,1714056632709,-227264.23797827,0.00012899,2]
[323502059,1714056632719,-918.56855901,0.000129,2]
[323502060,1714056632728,-587.0,0.0001293,2]
[323502061,1714056632738,-587.0,0.00012949,2]
[323502062,1714056632747,-151.0,0.00013699,2]
[323502063,1714056632757,-151.0,0.00013699,2]
[323502064,1714056632766,-151.0,0.00013699,2]
[323502065,1714056632775,-151.0,0.00013699,2]
[323502066,1714056632784,-151.0,0.00013699,2]
[323502067,1714056632793,-151.0,0.00013699,2]
[323502068,1714056632803,-396.948599,0.00013699,2]
[323502069,1714056632812,-396.948599,0.00013699,2]
[323502070,1714056632821,-396.948599,0.00013699,2]
[323502071,1714056632830,-396.948599,0.00013699,2]
[323502072,1714056632840,-151.0,0.00013699,2]
[323502073,1714056632850,-179.260984,0.00013699,2]
[323502074,1714056632859,-151.0,0.00013699,2]
[323502075,1714056632868,-151.0,0.00013699,2]
[323502076,1714056632877,-151.699765,0.00013699,2]
[323502077,1714056632887,-1312.81848,0.00013699,2]
[323502078,1714056632896,-1312.81848,0.00013699,2]
[323502079,1714056632907,-1312.81848,0.00013699,2]
[323502080,1714056632919,-1312.81848,0.00013699,2]
[323502081,1714056632928,-1312.81848,0.00013699,2]
[323502082,1714056632937,-1312.81848,0.00013699,2]
[323502083,1714056632946,-1312.81848,0.00013699,2]
[323502084,1714056632954,-1312.81848,0.00013699,2]
[323502085,1714056632963,-248.885351,0.00013699,2]
[323502086,1714056632972,-248.885351,0.00013699,2]
[323502087,1714056632982,-248.885351,0.00013699,2]
[323502088,1714056632991,-248.885351,0.00013699,2]
[323502089,1714056633001,-248.885351,0.00013699,2]
[323502090,1714056633013,-248.885351,0.00013699,2]
[323502091,1714056633023,-248.885351,0.00013699,2]
[323502092,1714056633031,-248.885351,0.00013699,2]
[323502093,1714056633041,-209.516384,0.00013699,2]
[323502094,1714056633050,-209.516384,0.00013699,2]
[323502095,1714056633060,-209.516384,0.00013699,2]
[323502096,1714056633069,-209.516384,0.00013699,2]
[323502097,1714056633080,-209.516384,0.00013699,2]
[323502098,1714056633090,-209.516384,0.00013699,2]
[323502099,1714056633100,-209.516384,0.00013699,2]
[323502100,1714056633109,-209.516384,0.00013699,2]
[323502101,1714056633119,-160.66869,0.00013699,2]
[323502102,1714056633128,-151.0,0.00013699,2]
[323502103,1714056633138,-153.866406,0.00013699,2]
[323502104,1714056633147,-173.619965,0.00013699,2]
[323502105,1714056633158,-151.0,0.00013699,2]
[323502106,1714056633167,-151.0,0.00013699,2]
[323502107,1714056633175,-151.0,0.00013699,2]
[323502108,1714056633184,-151.0,0.00013699,2]
[323502109,1714056633193,-151.0,0.00013699,2]
[323502110,1714056633203,-151.877114,0.00013699,2]
[323502111,1714056633212,-1333.837385,0.00013699,2]
[323502112,1714056633223,-1333.837385,0.00013699,2]
[323502113,1714056633232,-1333.837385,0.00013699,2]
[323502114,1714056633242,-1333.837385,0.00013699,2]
[323502115,1714056633252,-1333.837385,0.00013699,2]
[323502116,1714056633261,-1333.837385,0.00013699,2]
[323502117,1714056633271,-1333.837385,0.00013699,2]
[323502118,1714056633280,-1333.837385,0.00013699,2]
[323502119,1714056633290,-1333.837385,0.00013699,2]
[323502120,1714056633300,-1333.837385,0.00013699,2]
[323502121,1714056633309,-259.19067,0.00013699,2]
[323502122,1714056633318,-151.0,0.00013699,2]
[323502123,1714056633328,-151.0,0.00013699,2]
[323502124,1714056633340,-151.0,0.00013699,2]
[323502125,1714056633354,-151.0,0.00013699,2]
[323502126,1714056633364,-151.0,0.00013699,2]
[323502127,1714056633373,-151.0,0.00013699,2]
[323502128,1714056633382,-151.0,0.00013699,2]
[323502129,1714056633391,-151.0,0.00013699,2]
[323502130,1714056633400,-151.0,0.00013699,2]
[323502131,1714056633411,-151.0,0.00013699,2]
[323502132,1714056633421,-151.0,0.00013699,2]
[323502133,1714056633430,-151.0,0.00013699,2]
[323502134,1714056633440,-151.0,0.00013699,2]
[323502135,1714056633449,-151.0,0.00013699,2]
[323502136,1714056633458,-151.0,0.00013699,2]
[323502137,1714056633468,-151.0,0.00013699,2]
[323502138,1714056633477,-158.03863,0.00013699,2]
[323502139,1714056633486,-151.0,0.00013699,2]
[323502140,1714056633495,-198.105762,0.00013699,2]
[323502141,1714056633504,-509.843613,0.00013699,2]
[323502142,1714056633513,-509.843613,0.00013699,2]
[323502143,1714056633522,-509.843613,0.00013699,2]
[323502144,1714056633531,-509.843613,0.00013699,2]
[323502145,1714056633540,-509.843613,0.00013699,2]
[323502146,1714056633549,-509.843613,0.00013699,2]
[323502147,1714056633559,-509.843613,0.00013699,2]
[323502148,1714056633568,-847.572645,0.00013699,2]
[323502149,1714056633577,-509.843613,0.00013699,2]
[323502150,1714056633587,-847.572645,0.00013699,2]
[323502151,1714056633596,-847.572645,0.00013699,2]
[323502152,1714056633605,-509.843613,0.00013699,2]
[323502153,1714056633614,-847.572645,0.00013699,2]
[323502154,1714056633623,-509.843613,0.00013699,2]
[323502155,1714056633632,-847.572645,0.00013699,2]
[323502156,1714056633641,-509.843613,0.00013699,2]
[323502157,1714056633650,-847.572645,0.00013699,2]
[323502158,1714056633661,-509.843613,0.00013699,2]
[323502159,1714056633670,-151.0,0.00013699,2]
[323502160,1714056633679,-509.843613,0.00013699,2]
[323502161,1714056633688,-151.0,0.00013699,2]
[323502162,1714056633699,-847.572645,0.00013699,2]
[323502163,1714056633708,-509.843613,0.00013699,2]
[323502164,1714056633717,-151.0,0.00013699,2]
[323502165,1714056633726,-847.572645,0.00013699,2]
[323502166,1714056633735,-509.843613,0.00013699,2]
[323502167,1714056633744,-151.0,0.00013699,2]
[323502168,1714056633753,-151.0,0.00013699,2]
[323502169,1714056633762,-509.843613,0.00013699,2]
[323502170,1714056633771,-151.0,0.00013699,2]
[323502171,1714056633780,-847.572645,0.00013699,2]
[323502172,1714056633789,-282.41134,0.00013699,2]
[323502173,1714056633798,-847.572645,0.00013699,2]
[323502174,1714056633807,-847.572645,0.00013699,2]
[323502175,1714056633816,-847.572645,0.00013699,2]
[323502176,1714056633826,-847.572645,0.00013699,2]
[323502177,1714056633835,-847.572645,0.00013699,2]
[323502178,1714056633845,-847.572645,0.00013699,2]
[323502179,1714056633854,-847.572645,0.00013699,2]
[323502180,1714056633863,-1346.857605,0.00013699,2]
[323502181,1714056633872,-1346.857605,0.00013699,2]
[323502182,1714056633881,-1346.857605,0.00013699,2]
[323502183,1714056633891,-1346.857605,0.00013699,2]
[323502184,1714056633900,-1346.857605,0.00013699,2]
[323502185,1714056633912,-1346.857605,0.00013699,2]
[323502186,1714056633921,-1346.857605,0.00013699,2]
[323502187,1714056633930,-1346.857605,0.00013699,2]
[323502188,1714056633940,-1346.857605,0.00013699,2]
[323502189,1714056633949,-1346.857605,0.00013699,2]
[323502190,1714056633959,-1346.857605,0.00013699,2]
[323502191,1714056633968,-1346.857605,0.00013699,2]
[323502192,1714056633978,-1346.857605,0.00013699,2]
[323502193,1714056633988,-1346.857605,0.00013699,2]
[323502194,1714056633997,-1346.857605,0.00013699,2]
[323502195,1714056634008,-1346.857605,0.00013699,2]
[323502196,1714056634018,-151.0,0.00013699,2]
[323502197,1714056634028,-151.0,0.00013699,2]
[323502198,1714056634037,-151.0,0.00013699,2]
[323502199,1714056634046,-151.0,0.00013699,2]
[323502200,1714056634055,-151.0,0.00013699,2]
[323502201,1714056634065,-151.0,0.00013699,2]
[323502202,1714056634074,-151.0,0.00013699,2]
[323502203,1714056634084,-151.0,0.00013699,2]
[323502204,1714056634093,-151.0,0.00013699,2]
[323502205,1714056634102,-151.0,0.00013699,2]
[323502206,1714056634111,-151.0,0.00013699,2]
[323502207,1714056634120,-151.0,0.00013699,2]
[323502208,1714056634130,-151.0,0.00013699,2]
[323502209,1714056634139,-151.0,0.00013699,2]
[323502210,1714056634149,-151.0,0.00013699,2]
[323502211,1714056634161,-427.968457,0.00013699,2]
[323502212,1714056634172,-427.968457,0.00013699,2]
[323502213,1714056634182,-151.0,0.00013699,2]
[323502214,1714056634191,-427.968457,0.00013699,2]
[323502215,1714056634200,-151.0,0.00013699,2]
[323502216,1714056634210,-427.968457,0.00013699,2]
[323502217,1714056634219,-151.0,0.00013699,2]
[323502218,1714056634228,-427.968457,0.00013699,2]
[323502219,1714056634237,-427.968457,0.00013699,2]
[323502220,1714056634247,-427.968457,0.00013699,2]
[323502221,1714056634256,-151.0,0.00013699,2]
[323502222,1714056634265,-212.319512,0.00013699,2]
[323502223,1714056634275,-427.968457,0.00013699,2]
[323502224,1714056634284,-427.968457,0.00013699,2]
[323502225,1714056634293,-427.968457,0.00013699,2]
[323502226,1714056634302,-427.968457,0.00013699,2]
[323502227,1714056634311,-427.968457,0.00013699,2]
[323502228,1714056634320,-427.968457,0.00013699,2]
[323502229,1714056634329,-427.968457,0.00013699,2]
[323502230,1714056634338,-223.61417,0.00013699,2]
[323502231,1714056634347,-151.0,0.00013699,2]
[323502232,1714056634356,-151.0,0.00013699,2]
[323502233,1714056634365,-156.206243,0.00013699,2]
[323502234,1714056634375,-151.0,0.00013699,2]
[323502235,1714056634384,-151.0,0.00013699,2]
[323502236,1714056634393,-151.0,0.00013699,2]
[323502237,1714056634402,-151.0,0.00013699,2]
[323502238,1714056634413,-151.0,0.00013699,2]
[323502239,1714056634422,-151.0,0.00013699,2]
[323502240,1714056634430,-151.0,0.00013699,2]
[323502241,1714056634440,-151.0,0.00013699,2]
[323502242,1714056634449,-614.294825,0.00013699,2]
[323502243,1714056634458,-151.0,0.00013699,2]
[323502244,1714056634467,-614.294825,0.00013699,2]
[323502245,1714056634476,-151.0,0.00013699,2]
[323502246,1714056634485,-151.0,0.00013699,2]
[323502247,1714056634495,-151.0,0.00013699,2]
[323502248,1714056634504,-614.294825,0.00013699,2]
[323502249,1714056634513,-151.0,0.00013699,2]
[323502250,1714056634522,-261.249387,0.00013699,2]
[323502251,1714056634531,-614.294825,0.00013699,2]
[323502252,1714056634541,-614.294825,0.00013699,2]
[323502253,1714056634553,-614.294825,0.00013699,2]
[323502254,1714056634563,-614.294825,0.00013699,2]
[323502255,1714056634572,-614.294825,0.00013699,2]
[323502256,1714056634582,-614.294825,0.00013699,2]
[323502257,1714056634591,-614.294825,0.00013699,2]
[323502258,1714056634601,-614.294825,0.00013699,2]
[323502259,1714056634610,-614.294825,0.00013699,2]
[323502260,1714056634619,-614.294825,0.00013699,2]
[323502261,1714056634628,-614.294825,0.00013699,2]
[323502262,1714056634638,-151.0,0.00013699,2]
[323502263,1714056634647,-151.0,0.00013699,2]
[323502264,1714056634658,-151.0,0.00013699,2]
[323502265,1714056634668,-151.0,0.00013699,2]
[323502266,1714056634677,-151.0,0.00013699,2]
[323502267,1714056634686,-151.0,0.00013699,2]
[323502268,1714056634696,-396.948599,0.00013699,2]